fUST/lending_fUST_20260523
["ID","MTS","AMOUNT","RATE_DAILY","PERIOD"]
[422845351,1779517839000,-7756.40311189,7.499e-05,2]
[422845349,1779517839000,-15703.18355631,7.499e-05,2]
[422845340,1779517839000,-500.0,7.498e-05,2]
[422845352,1779517839000,-8955.59232502,7.499e-05,2]
[422845350,1779517839000,-977.39074962,7.499e-05,2]
[422845360,1779517840000,-500.0,7.498e-05,2]
[422845355,1779517840000,-56.00925131,7.498e-05,2]
[422845354,1779517840000,-500.0,7.498e-05,2]
[422845356,1779517840000,-379.72335834,7.498e-05,2]
[422845358,1779517840000,-500.0,7.498e-05,2]
[422845357,1779517840000,-64.26739035,7.498e-05,2]
[422845366,1779517840000,-477.66946371,7.498e-05,2]
[422845359,1779517840000,-500.0,7.498e-05,2]
[422845365,1779517840000,-355.22724299,7.498e-05,2]
[422845364,1779517840000,-500.0,7.498e-05,2]
[422845361,1779517840000,-500.0,7.498e-05,2]
[422845362,1779517840000,-500.0,7.498e-05,2]
[422845363,1779517840000,-500.0,7.498e-05,2]
[422845377,1779517843000,-4133.93835324,7.423e-05,2]
[422845382,1779517844000,-500.0,7.498e-05,2]
[422845380,1779517844000,-429.499212,7.498e-05,2]
[422845384,1779517844000,-500.0,7.498e-05,2]
[422845381,1779517844000,-70.500788,7.498e-05,2]
[422845378,1779517844000,-866.06164676,7.423e-05,2]
[422845386,1779517844000,-500.0,7.498e-05,2]
[422845379,1779517844000,-22.33053629,7.498e-05,2]
[422845387,1779517844000,-208.49109119,7.498e-05,2]
[422845385,1779517844000,-500.0,7.498e-05,2]
[422845383,1779517844000,-500.0,7.498e-05,2]
[422845400,1779518045000,365.64890255,0.00017808,120]
[422845402,1779518057000,168.090141,6.187e-05,120]
[422845470,1779518323000,200.0,6.093e-05,7]
[422845478,1779518740000,152.0,6.095e-05,7]
[422845476,1779518740000,186.0012052,2.712e-05,2]
[422845489,1779518763000,152.0,6.093e-05,7]
[422845488,1779518763000,152.0,6.093e-05,7]
[422845490,1779518764000,152.0,6.843e-05,30]
[422845491,1779518791000,-1566.738542,5.425e-05,2]
[422845492,1779518791000,-164.5364274,5.479e-05,2]
[422845494,1779518791000,-1200.0,5.705e-05,2]
[422845496,1779518791000,-1744.99140116,5.706e-05,2]
[422845495,1779518791000,-300.0,5.705e-05,2]
[422845493,1779518791000,-5000.0,5.649e-05,2]
[422845610,1779519032000,-300.0,6.248e-05,2]
[422845608,1779519032000,-300.0,6.248e-05,2]
[422845606,1779519032000,-174.114439,6.022e-05,2]
[422845604,1779519032000,-420.0,6.013e-05,2]
[422845602,1779519032000,-7258.62,6e-05,2]
[422845596,1779519032000,-200.0,5.522e-05,2]
[422845594,1779519032000,-5000.0,5.467e-05,2]
[422845600,1779519032000,-559.78790789,5.565e-05,2]
[422845598,1779519032000,-168.090141,5.541e-05,2]
[422845590,1779519032000,-5000.0,5.412e-05,2]
[422845588,1779519032000,-212.16656335,5.411e-05,2]
[422845582,1779519032000,-79.83343665,5.411e-05,2]
[422845580,1779519032000,-2501.53095584,5.358e-05,2]
[422845575,1779519032000,-763.77151649,5.358e-05,2]
[422845573,1779519032000,-406.30584553,5.358e-05,2]
[422845570,1779519032000,-1328.39168214,5.358e-05,2]
[422845592,1779519032000,-300.0,5.466e-05,2]
[422845612,1779519032000,-300.0,6.248e-05,2]
[422845618,1779519032000,-300.0,6.248e-05,2]
[422845616,1779519032000,-300.0,6.248e-05,2]
[422845614,1779519032000,-300.0,6.248e-05,2]
[422845649,1779519032000,-364.29577599,7.022e-05,2]
[422845647,1779519032000,-720.0,7.009e-05,2]
[422845643,1779519032000,-151.0,6.641e-05,2]
[422845645,1779519032000,-151.0,6.846e-05,2]
[422845639,1779519032000,-600.0,6.372e-05,2]
[422845641,1779519032000,-587.0,6.614e-05,2]
[422845637,1779519032000,-155.8143,6.249e-05,2]
[422845627,1779519032000,-300.0,6.248e-05,2]
[422845633,1779519032000,-300.0,6.248e-05,2]
[422845622,1779519032000,-300.0,6.248e-05,2]
[422845624,1779519032000,-300.0,6.248e-05,2]
[422845620,1779519032000,-300.0,6.248e-05,2]
[422845631,1779519032000,-300.0,6.248e-05,2]
[422845629,1779519032000,-300.0,6.248e-05,2]
[422845635,1779519032000,-300.0,6.248e-05,2]
[422845626,1779519032000,-300.0,6.248e-05,2]
[422845753,1779519038000,-151.0,6.5e-05,2]
[422845754,1779519039000,-429.46239662,7.022e-05,2]
[422845755,1779519039000,-820.992352,7.022e-05,2]
[422845756,1779519039000,-24210.89188236,7.022e-05,2]
[422845786,1779519044000,-1108.47404117,6.435e-05,2]
[422845783,1779519044000,-659.7749991,6.435e-05,2]
[422845784,1779519044000,-499.48143251,6.435e-05,2]
[422845782,1779519044000,-2185.89669367,6.435e-05,2]
[422845793,1779519047000,-6724.22369842,7.022e-05,2]
[422845791,1779519047000,-546.37283355,6.435e-05,2]
[422845792,1779519047000,-9297.96797689,7.022e-05,2]
[422845795,1779519271000,241.32827569,0.00013934,120]
[422845796,1779519303000,318.11454521,0.00013934,120]
[422845809,1779519654000,-169.37151,5.321e-05,2]
[422845810,1779519677000,-3897.109,5.321e-05,2]
[422845811,1779519731000,-933.51949,5.321e-05,2]
[422845812,1779519733000,115.69051,5.321e-05,2]
[422845814,1779519787000,-4884.30949,5.321e-05,2]
[422845815,1779519795000,3996.97051,5.321e-05,2]
[422845816,1779519825000,-899.902,5.215e-05,2]
[422845819,1779519859000,-3806.68,5.215e-05,2]
[422845820,1779519915000,-293.418,5.215e-05,2]
[422845821,1779519936000,438.22,5.215e-05,2]
[422845822,1779519979000,-3633.36,5.215e-05,2]
[422845823,1779520013000,-2167.87,5.111e-05,2]
[422845824,1779520036000,-2258.93,5.111e-05,2]
[422845826,1779520107000,-573.2,5.111e-05,2]
[422845827,1779520117000,278.019,5.111e-05,2]
[422845829,1779520164000,-496.06099248,5.06e-05,2]
[422845830,1779520175000,5000.0,5e-05,2]
[422845831,1779520185000,-3203.73,5.06e-05,2]
[422845832,1779520196000,5000.0,5e-05,2]
[422845833,1779520218000,5000.0,5e-05,2]
[422845834,1779520223000,-600.0,5.06e-05,2]
[422845860,1779520234000,-293.89120916,5.06e-05,2]
[422845862,1779520234000,-2989.35428164,5.111e-05,2]
[422845858,1779520234000,-406.31779836,5.06e-05,2]
[422845864,1779520234000,-395.18792757,5.111e-05,2]
[422845981,1779520238000,-500.0,5.59e-05,2]
[422845976,1779520238000,-1337.43879079,5.111e-05,2]
[422845987,1779520238000,-103.58180357,5.59e-05,2]
[422845977,1779520238000,-576.59482214,5.137e-05,2]
[422845978,1779520238000,-300.0,5.214e-05,2]
[422845980,1779520238000,-174.114439,5.484e-05,2]
[422845983,1779520238000,-500.0,5.59e-05,2]
[422845994,1779520238000,-396.41819643,5.59e-05,2]
[422845996,1779520238000,-500.0,5.59e-05,2]
[422845995,1779520238000,-512.03723337,5.59e-05,2]
[422845985,1779520238000,-500.0,5.59e-05,2]
[422846047,1779520239000,-300.0,5.593e-05,2]
[422846039,1779520239000,-300.0,5.593e-05,2]
[422846033,1779520239000,-500.0,5.59e-05,2]
[422846035,1779520239000,-500.0,5.59e-05,2]
[422846030,1779520239000,-500.0,5.59e-05,2]
[422846032,1779520239000,-500.0,5.59e-05,2]
[422846034,1779520239000,-500.0,5.59e-05,2]
[422846031,1779520239000,-500.0,5.59e-05,2]
[422846028,1779520239000,-500.0,5.59e-05,2]
[422846054,1779520239000,-420.0,5.735e-05,2]
[422846025,1779520239000,-500.0,5.59e-05,2]
[422846029,1779520239000,-500.0,5.59e-05,2]
[422846045,1779520239000,-300.0,5.593e-05,2]
[422846053,1779520239000,-300.0,5.593e-05,2]
[422846049,1779520239000,-300.0,5.593e-05,2]
[422846044,1779520239000,-300.0,5.593e-05,2]
[422846043,1779520239000,-300.0,5.593e-05,2]
[422846040,1779520239000,-300.0,5.593e-05,2]
[422846046,1779520239000,-300.0,5.593e-05,2]
[422846050,1779520239000,-300.0,5.593e-05,2]
[422846041,1779520239000,-300.0,5.593e-05,2]
[422846048,1779520239000,-300.0,5.593e-05,2]
[422846063,1779520239000,-917.14552592,5.999e-05,2]
[422846052,1779520239000,-300.0,5.593e-05,2]
[422846051,1779520239000,-300.0,5.593e-05,2]
[422846027,1779520239000,-500.0,5.59e-05,2]
[422846062,1779520239000,-917.14552592,5.999e-05,2]
[422846042,1779520239000,-300.0,5.593e-05,2]
[422846038,1779520239000,-500.0,5.59e-05,2]
[422846022,1779520239000,-500.0,5.59e-05,2]
[422846036,1779520239000,-403.62403389,5.59e-05,2]
[422845997,1779520239000,-500.0,5.59e-05,2]
[422845998,1779520239000,-500.0,5.59e-05,2]
[422845999,1779520239000,-355.65632441,5.59e-05,2]
[422846001,1779520239000,-500.0,5.59e-05,2]
[422846000,1779520239000,-500.0,5.59e-05,2]
[422846002,1779520239000,-500.0,5.59e-05,2]
[422846004,1779520239000,-500.0,5.59e-05,2]
[422846003,1779520239000,-500.0,5.59e-05,2]
[422846008,1779520239000,-600.55690865,5.59e-05,2]
[422846010,1779520239000,-500.0,5.59e-05,2]
[422846006,1779520239000,-500.0,5.59e-05,2]
[422846007,1779520239000,-500.0,5.59e-05,2]
[422846005,1779520239000,-500.0,5.59e-05,2]
[422846026,1779520239000,-500.0,5.59e-05,2]
[422846009,1779520239000,-500.0,5.59e-05,2]
[422846012,1779520239000,-500.0,5.59e-05,2]
[422846014,1779520239000,-500.0,5.59e-05,2]
[422846017,1779520239000,-500.0,5.59e-05,2]
[422846015,1779520239000,-500.0,5.59e-05,2]
[422846021,1779520239000,-500.0,5.59e-05,2]
[422846024,1779520239000,-500.0,5.59e-05,2]
[422846013,1779520239000,-500.0,5.59e-05,2]
[422846016,1779520239000,-500.0,5.59e-05,2]
[422846019,1779520239000,-500.0,5.59e-05,2]
[422846018,1779520239000,-500.0,5.59e-05,2]
[422846023,1779520239000,-500.0,5.59e-05,2]
[422846020,1779520239000,-500.0,5.59e-05,2]
[422846037,1779520239000,-500.0,5.59e-05,2]
[422846011,1779520239000,-500.0,5.59e-05,2]
[422846055,1779520239000,-500.0,5.821e-05,2]
[422846086,1779520239000,-67433.9799214,6e-05,2]
[422846060,1779520239000,-917.14552592,5.999e-05,2]
[422846094,1779520239000,-720.0,6.53e-05,2]
[422846095,1779520239000,-183.48793947,6.748e-05,2]
[422846096,1779520239000,-823.0,6.94e-05,2]
[422846092,1779520239000,-151.0,6.5e-05,2]
[422846089,1779520239000,-46695.8221905,6.465e-05,2]
[422846091,1779520239000,-17320.0883272,6.465e-05,2]
[422846097,1779520239000,-87892.49085399,7e-05,2]
[422846111,1779520239000,-151.0,7.059e-05,2]
[422846101,1779520239000,-151.0,7.059e-05,2]
[422846100,1779520239000,-162.380719,7.059e-05,2]
[422846103,1779520239000,-151.0,7.059e-05,2]
[422846102,1779520239000,-151.0,7.059e-05,2]
[422846109,1779520239000,-151.0,7.059e-05,2]
[422846093,1779520239000,-151.0,6.5e-05,2]
[422846106,1779520239000,-151.0,7.059e-05,2]
[422846108,1779520239000,-151.0,7.059e-05,2]
[422846107,1779520239000,-151.0,7.059e-05,2]
[422846105,1779520239000,-151.0,7.059e-05,2]
[422846113,1779520239000,-151.0,7.059e-05,2]
[422846114,1779520239000,-151.0,7.059e-05,2]
[422846112,1779520239000,-151.0,7.059e-05,2]
[422846115,1779520239000,-151.0,7.059e-05,2]
[422846117,1779520239000,-151.0,7.059e-05,2]
[422846116,1779520239000,-151.0,7.059e-05,2]
[422846120,1779520239000,-151.0,7.059e-05,2]
[422846119,1779520239000,-151.0,7.059e-05,2]
[422846118,1779520239000,-151.0,7.059e-05,2]
[422846061,1779520239000,-917.14552592,5.999e-05,2]
[422846104,1779520239000,-151.0,7.059e-05,2]
[422846090,1779520239000,-198.0135967,6.465e-05,2]
[422846110,1779520239000,-151.0,7.059e-05,2]
[422846087,1779520239000,-587.0,6.309e-05,2]
[422846099,1779520239000,-151.0,7.059e-05,2]
[422846059,1779520239000,-600.0,5.936e-05,2]
[422846058,1779520239000,-336.6822041,5.821e-05,2]
[422846057,1779520239000,-500.0,5.821e-05,2]
[422846064,1779520239000,-917.14552592,5.999e-05,2]
[422846069,1779520239000,-917.14552592,5.999e-05,2]
[422846066,1779520239000,-917.14552592,5.999e-05,2]
[422846068,1779520239000,-917.14552592,5.999e-05,2]
[422846067,1779520239000,-917.14552592,5.999e-05,2]
[422846072,1779520239000,-952.42035383,5.999e-05,2]
[422846065,1779520239000,-917.14552592,5.999e-05,2]
[422846071,1779520239000,-917.14552592,5.999e-05,2]
[422846075,1779520239000,-952.42035383,5.999e-05,2]
[422846070,1779520239000,-917.14552592,5.999e-05,2]
[422846056,1779520239000,-500.0,5.821e-05,2]
[422846076,1779520239000,-952.42035383,5.999e-05,2]
[422846074,1779520239000,-952.42035383,5.999e-05,2]
[422846088,1779520239000,-183.48793947,6.374e-05,2]
[422846085,1779520239000,-183.48793948,5.999e-05,2]
[422846083,1779520239000,-917.69669511,5.999e-05,2]
[422846081,1779520239000,-952.42035383,5.999e-05,2]
[422846082,1779520239000,-917.69669511,5.999e-05,2]
[422846098,1779520239000,-151.0,7.058e-05,2]
[422846080,1779520239000,-952.42035383,5.999e-05,2]
[422846078,1779520239000,-952.42035383,5.999e-05,2]
[422846079,1779520239000,-952.42035383,5.999e-05,2]
[422846073,1779520239000,-952.42035383,5.999e-05,2]
[422846077,1779520239000,-952.42035383,5.999e-05,2]
[422846084,1779520239000,-917.69669511,5.999e-05,2]
[422846168,1779520240000,-500.0,7.954e-05,2]
[422846176,1779520240000,-160.0,8.05e-05,5]
[422846165,1779520240000,-742.0,7.884e-05,2]
[422846159,1779520240000,-293.57871297,7.749e-05,2]
[422846163,1779520240000,-648.0,7.884e-05,2]
[422846160,1779520240000,-4961.84628088,7.835e-05,2]
[422846157,1779520240000,-160.0,7.698e-05,2]
[422846158,1779520240000,-179.24543092,7.744e-05,2]
[422846161,1779520240000,-1413.0,7.884e-05,2]
[422846156,1779520240000,-160.0,7.697e-05,2]
[422846175,1779520240000,-160.0,8.05e-05,5]
[422846162,1779520240000,-2204.0,7.884e-05,2]
[422846164,1779520240000,-443.0,7.884e-05,2]
[422846173,1779520240000,-387.01747175,8e-05,2]
[422846169,1779520240000,-306.87323565,8e-05,2]
[422846170,1779520240000,-308.31504453,8e-05,2]
[422846174,1779520240000,-293.57871297,8.023e-05,2]
[422846171,1779520240000,-387.01747182,8e-05,2]
[422846166,1779520240000,-185.0,7.884e-05,2]
[422846167,1779520240000,-1000.0,7.901e-05,2]
[422846179,1779520240000,-308.31504453,8.1e-05,2]
[422846177,1779520240000,-56609.21612335,8.068e-05,2]
[422846181,1779520240000,-161.73153808,8.152e-05,2]
[422846182,1779520240000,-766.63845589,8.152e-05,2]
[422846180,1779520240000,-500.805,8.123e-05,2]
[422846183,1779520240000,-160.0,8.153e-05,2]
[422846155,1779520240000,-1152.0,7.634e-05,2]
[422846172,1779520240000,-387.01747175,8e-05,2]
[422846151,1779520240000,-2207.47248621,7.551e-05,2]
[422846123,1779520240000,-9042.8723204,7.123e-05,2]
[422846154,1779520240000,-151.77952861,7.607e-05,2]
[422846124,1779520240000,-6643.74292928,7.123e-05,2]
[422846121,1779520240000,-161.19271659,7.059e-05,2]
[422846122,1779520240000,-183.48793947,7.123e-05,2]
[422846125,1779520240000,-4613.71036755,7.123e-05,2]
[422846127,1779520240000,-1660.93573232,7.123e-05,2]
[422846184,1779520240000,-150.494,8.174e-05,2]
[422846129,1779520240000,-184.36386629,7.123e-05,2]
[422846136,1779520240000,-5375.29027392,7.123e-05,2]
[422846135,1779520240000,-4115.45661597,7.123e-05,2]
[422846132,1779520240000,-1343.82256848,7.123e-05,2]
[422846130,1779520240000,-419.94455265,7.123e-05,2]
[422846131,1779520240000,-755.90019477,7.123e-05,2]
[422846134,1779520240000,-3023.60077908,7.123e-05,2]
[422846153,1779520240000,-218021.07013655,7.6e-05,2]
[422846126,1779520240000,-2952.77463523,7.123e-05,2]
[422846138,1779520240000,-8398.891053,7.123e-05,2]
[422846148,1779520240000,-172.69336057,7.53e-05,2]
[422846149,1779520240000,-296.78935649,7.53e-05,2]
[422846137,1779520240000,-6803.10175293,7.123e-05,2]
[422846139,1779520240000,-10162.65817413,7.123e-05,2]
[422846140,1779520240000,-12082.3087132,7.123e-05,2]
[422846143,1779520240000,-310.19081319,7.498e-05,2]
[422846146,1779520240000,-551.86812155,7.498e-05,2]
[422846144,1779520240000,-502.98722625,7.498e-05,2]
[422846145,1779520240000,-1239.52248952,7.498e-05,2]
[422846141,1779520240000,-680.38189012,7.137e-05,2]
[422846142,1779520240000,-864.0,7.183e-05,2]
[422846147,1779520240000,-2009.93695611,7.498e-05,2]
[422846133,1779520240000,-2099.72276325,7.123e-05,2]
[422846186,1779520240000,-150.0,8.174e-05,2]
[422846128,1779520240000,-738.19365881,7.123e-05,2]
[422846188,1779520240000,-306.87323565,8.2e-05,2]
[422846232,1779520240000,-500.0,8.219e-05,2]
[422846221,1779520240000,-500.0,8.219e-05,2]
[422846227,1779520240000,-613.91,8.219e-05,2]
[422846222,1779520240000,-500.0,8.219e-05,2]
[422846224,1779520240000,-500.0,8.219e-05,2]
[422846225,1779520240000,-500.0,8.219e-05,2]
[422846223,1779520240000,-1109.15,8.219e-05,2]
[422846228,1779520240000,-500.0,8.219e-05,2]
[422846226,1779520240000,-500.0,8.219e-05,2]
[422846229,1779520240000,-533.49,8.219e-05,2]
[422846234,1779520240000,-500.0,8.219e-05,2]
[422846244,1779520240000,-1240.58,8.219e-05,2]
[422846233,1779520240000,-500.0,8.219e-05,2]
[422846230,1779520240000,-500.0,8.219e-05,2]
[422846240,1779520240000,-1148.87,8.219e-05,2]
[422846238,1779520240000,-573.2,8.219e-05,2]
[422846237,1779520240000,-500.0,8.219e-05,2]
[422846241,1779520240000,-500.0,8.219e-05,2]
[422846236,1779520240000,-151.62656856,8.219e-05,2]
[422846243,1779520240000,-1374.53,8.219e-05,2]
[422846246,1779520240000,-500.0,8.219e-05,2]
[422846245,1779520240000,-593.31,8.219e-05,2]
[422846247,1779520240000,-1458.1,8.219e-05,2]
[422846248,1779520240000,-539.25,8.219e-05,2]
[422846249,1779520240000,-500.0,8.219e-05,2]
[422846250,1779520240000,-500.0,8.219e-05,2]
[422846251,1779520240000,-757.16,8.219e-05,2]
[422846185,1779520240000,-150.0,8.174e-05,2]
[422846242,1779520240000,-714.28,8.219e-05,2]
[422846219,1779520240000,-500.0,8.219e-05,2]
[422846235,1779520240000,-500.0,8.219e-05,2]
[422846209,1779520240000,-500.0,8.219e-05,2]
[422846220,1779520240000,-500.0,8.219e-05,2]
[422846178,1779520240000,-306.87323565,8.1e-05,2]
[422846190,1779520240000,-308.31504453,8.2e-05,2]
[422846187,1779520240000,-306.87323565,8.2e-05,2]
[422846202,1779520240000,-500.0,8.219e-05,2]
[422846203,1779520240000,-964.44,8.219e-05,2]
[422846204,1779520240000,-500.0,8.219e-05,2]
[422846195,1779520240000,-500.0,8.219e-05,2]
[422846193,1779520240000,-912.5229,8.219e-05,2]
[422846191,1779520240000,-995.0,8.2e-05,2]
[422846205,1779520240000,-500.0,8.219e-05,2]
[422846198,1779520240000,-1543.43,8.219e-05,2]
[422846196,1779520240000,-500.0,8.219e-05,2]
[422846200,1779520240000,-500.0,8.219e-05,2]
[422846201,1779520240000,-500.0,8.219e-05,2]
[422846189,1779520240000,-308.31504453,8.2e-05,2]
[422846215,1779520240000,-577.13,8.219e-05,2]
[422846197,1779520240000,-1694.9,8.219e-05,2]
[422846207,1779520240000,-500.0,8.219e-05,2]
[422846206,1779520240000,-500.0,8.219e-05,2]
[422846211,1779520240000,-500.0,8.219e-05,2]
[422846210,1779520240000,-500.0,8.219e-05,2]
[422846212,1779520240000,-500.0,8.219e-05,2]
[422846216,1779520240000,-885.65,8.219e-05,2]
[422846218,1779520240000,-510.37,8.219e-05,2]
[422846199,1779520240000,-500.0,8.219e-05,2]
[422846217,1779520240000,-500.0,8.219e-05,2]
[422846214,1779520240000,-500.0,8.219e-05,2]
[422846208,1779520240000,-971.34,8.219e-05,2]
[422846213,1779520240000,-500.0,8.219e-05,2]
[422846297,1779520241000,-2449.85,8.219e-05,2]
[422846290,1779520241000,-500.0,8.219e-05,2]
[422846276,1779520241000,-500.0,8.219e-05,2]
[422846295,1779520241000,-629.7,8.219e-05,2]
[422846292,1779520241000,-977.58,8.219e-05,2]
[422846289,1779520241000,-500.0,8.219e-05,2]
[422846279,1779520241000,-730.75,8.219e-05,2]
[422846300,1779520241000,-627.77,8.219e-05,2]
[422846288,1779520241000,-608.89,8.219e-05,2]
[422846298,1779520241000,-500.0,8.219e-05,2]
[422846299,1779520241000,-1221.37,8.219e-05,2]
[422846287,1779520241000,-500.0,8.219e-05,2]
[422846294,1779520241000,-585.19,8.219e-05,2]
[422846291,1779520241000,-654.67,8.219e-05,2]
[422846293,1779520241000,-942.51,8.219e-05,2]
[422846301,1779520241000,-500.0,8.219e-05,2]
[422846302,1779520241000,-500.0,8.219e-05,2]
[422846312,1779520241000,-500.0,8.219e-05,2]
[422846313,1779520241000,-500.0,8.219e-05,2]
[422846314,1779520241000,-555.43,8.219e-05,2]
[422846303,1779520241000,-573.91,8.219e-05,2]
[422846305,1779520241000,-500.0,8.219e-05,2]
[422846309,1779520241000,-500.0,8.219e-05,2]
[422846304,1779520241000,-500.0,8.219e-05,2]
[422846306,1779520241000,-3498.0009,8.219e-05,2]
[422846311,1779520241000,-500.0,8.219e-05,2]
[422846307,1779520241000,-500.0,8.219e-05,2]
[422846310,1779520241000,-500.0,8.219e-05,2]
[422846308,1779520241000,-500.0,8.219e-05,2]
[422846296,1779520241000,-919.13,8.219e-05,2]
[422846281,1779520241000,-513.87886229,8.219e-05,2]
[422846256,1779520241000,-500.0,8.219e-05,2]
[422846275,1779520241000,-527.17388175,8.219e-05,2]
[422846315,1779520241000,-570.43,8.219e-05,2]
[422846252,1779520241000,-500.0,8.219e-05,2]
[422846253,1779520241000,-500.0,8.219e-05,2]
[422846257,1779520241000,-959.41,8.219e-05,2]
[422846254,1779520241000,-2562.72,8.219e-05,2]
[422846255,1779520241000,-1617.65,8.219e-05,2]
[422846258,1779520241000,-500.0,8.219e-05,2]
[422846262,1779520241000,-500.0,8.219e-05,2]
[422846263,1779520241000,-500.0,8.219e-05,2]
[422846261,1779520241000,-730.97,8.219e-05,2]
[422846260,1779520241000,-1108.55,8.219e-05,2]
[422846268,1779520241000,-500.0,8.219e-05,2]
[422846266,1779520241000,-500.0,8.219e-05,2]
[422846265,1779520241000,-4002.85,8.219e-05,2]
[422846267,1779520241000,-1090.3,8.219e-05,2]
[422846264,1779520241000,-500.0,8.219e-05,2]
[422846270,1779520241000,-2025.72,8.219e-05,2]
[422846259,1779520241000,-991.31,8.219e-05,2]
[422846271,1779520241000,-500.0,8.219e-05,2]
[422846269,1779520241000,-1468.8,8.219e-05,2]
[422846273,1779520241000,-644.72,8.219e-05,2]
[422846272,1779520241000,-3934.97,8.219e-05,2]
[422846284,1779520241000,-500.0,8.219e-05,2]
[422846283,1779520241000,-500.0,8.219e-05,2]
[422846285,1779520241000,-500.0,8.219e-05,2]
[422846286,1779520241000,-500.0,8.219e-05,2]
[422846282,1779520241000,-500.0,8.219e-05,2]
[422846277,1779520241000,-806.96,8.219e-05,2]
[422846278,1779520241000,-519.14,8.219e-05,2]
[422846280,1779520241000,-1971.81,8.219e-05,2]
[422846316,1779520241000,-500.0,8.219e-05,2]
[422846369,1779520241000,-555.05,8.219e-05,2]
[422846320,1779520241000,-10475.12,8.219e-05,2]
[422846352,1779520241000,-500.0,8.219e-05,2]
[422846353,1779520241000,-2473.74,8.219e-05,2]
[422846361,1779520241000,-500.0,8.219e-05,2]
[422846358,1779520241000,-501.66,8.219e-05,2]
[422846351,1779520241000,-500.0,8.219e-05,2]
[422846357,1779520241000,-500.0,8.219e-05,2]
[422846355,1779520241000,-500.0,8.219e-05,2]
[422846359,1779520241000,-500.0,8.219e-05,2]
[422846356,1779520241000,-500.0,8.219e-05,2]
[422846360,1779520241000,-500.0,8.219e-05,2]
[422846363,1779520241000,-500.0,8.219e-05,2]
[422846374,1779520241000,-500.0,8.219e-05,2]
[422846365,1779520241000,-3751.34,8.219e-05,2]
[422846366,1779520241000,-500.0,8.219e-05,2]
[422846373,1779520241000,-1052.27,8.219e-05,2]
[422846362,1779520241000,-1061.1,8.219e-05,2]
[422846375,1779520241000,-1291.77,8.219e-05,2]
[422846364,1779520241000,-500.0,8.219e-05,2]
[422846367,1779520241000,-675.65,8.219e-05,2]
[422846319,1779520241000,-840.82,8.219e-05,2]
[422846371,1779520241000,-500.0,8.219e-05,2]
[422846372,1779520241000,-500.0,8.219e-05,2]
[422846370,1779520241000,-364.08951944,8.219e-05,2]
[422846368,1779520241000,-1209.56,8.219e-05,2]
[422846376,1779520241000,-500.0,8.219e-05,2]
[422846379,1779520241000,-500.0,8.219e-05,2]
[422846377,1779520241000,-1354.47,8.219e-05,2]
[422846378,1779520241000,-2749.75,8.219e-05,2]
[422846381,1779520241000,-500.0,8.219e-05,2]
[422846354,1779520241000,-1063.93,8.219e-05,2]
[422846350,1779520241000,-500.0,8.219e-05,2]
[422846380,1779520241000,-500.0,8.219e-05,2]
[422846343,1779520241000,-1400.56,8.219e-05,2]
[422846345,1779520241000,-639.8865092,8.219e-05,2]
[422846317,1779520241000,-326.23925281,8.219e-05,2]
[422846318,1779520241000,-500.0,8.219e-05,2]
[422846326,1779520241000,-544.68,8.219e-05,2]
[422846327,1779520241000,-388.857567,8.219e-05,2]
[422846323,1779520241000,-1143.67,8.219e-05,2]
[422846322,1779520241000,-2789.46,8.219e-05,2]
[422846321,1779520241000,-543.8,8.219e-05,2]
[422846328,1779520241000,-7318.69,8.219e-05,2]
[422846325,1779520241000,-1742.21,8.219e-05,2]
[422846330,1779520241000,-219.705543,8.219e-05,2]
[422846329,1779520241000,-501.11,8.219e-05,2]
[422846332,1779520241000,-500.0,8.219e-05,2]
[422846331,1779520241000,-574.43,8.219e-05,2]
[422846324,1779520241000,-858.96,8.219e-05,2]
[422846334,1779520241000,-500.0,8.219e-05,2]
[422846333,1779520241000,-500.0,8.219e-05,2]
[422846347,1779520241000,-500.0,8.219e-05,2]
[422846341,1779520241000,-7489.66,8.219e-05,2]
[422846344,1779520241000,-500.0,8.219e-05,2]
[422846346,1779520241000,-2279.08,8.219e-05,2]
[422846340,1779520241000,-5224.05,8.219e-05,2]
[422846339,1779520241000,-500.0,8.219e-05,2]